Workbook

Sheet Sales Seasonality by Month
B3: Sales Seasonality by Month
B4: For the Year 2009
C7: Actual | D7: % of | E7: Company Index | F7: Industry % | G7: Industry Index
C8: Sales | D8: Sales | E8: To Average | F8: of Sales | G8: to Average
B9: Jan | C9: $100,000 | D9: =IF(C9,C9/C21,"") -> 7.75% | E9: =IF(C9,C9/AVERAGE(C9:C20),"") -> 93.1% | F9: 7.0% | G9: =IF(F9,F9/AVERAGE(F9:F20),"") -> 84.0%
B10: =INDEX(H113:S114,1,I114) -> Feb | C10: 101,300 | D10: =IF(C10,C10/C21,"") -> 7.85% | E10: =IF(C10,C10/AVERAGE(C9:C20),"") -> 94.3% | F10: 7.5% | G10: =IF(F10,F10/AVERAGE(F9:F20),"") -> 90.0%
B11: =INDEX(H113:S114,1,J114) -> Mar | C11: 102,617 | D11: =IF(C11,C11/C21,"") -> 7.96% | E11: =IF(C11,C11/AVERAGE(C9:C20),"") -> 95.5% | F11: 9.0% | G11: =IF(F11,F11/AVERAGE(F9:F20),"") -> 108.0%
B12: =INDEX(H113:S114,1,K114) -> Apr | C12: 103,951 | D12: =IF(C12,C12/C21,"") -> 8.06% | E12: =IF(C12,C12/AVERAGE(C9:C20),"") -> 96.7% | F12: 9.0% | G12: =IF(F12,F12/AVERAGE(F9:F20),"") -> 108.0%
B13: =INDEX(H113:S114,1,L114) -> May | C13: 105,302 | D13: =IF(C13,C13/C21,"") -> 8.17% | E13: =IF(C13,C13/AVERAGE(C9:C20),"") -> 98.0% | F13: 9.0% | G13: =IF(F13,F13/AVERAGE(F9:F20),"") -> 108.0%
B14: =INDEX(H113:S114,1,M114) -> Jun | C14: 106,671 | D14: =IF(C14,C14/C21,"") -> 8.27% | E14: =IF(C14,C14/AVERAGE(C9:C20),"") -> 99.3% | F14: 8.0% | G14: =IF(F14,F14/AVERAGE(F9:F20),"") -> 96.0%
B15: =INDEX(H113:S114,1,N114) -> Jul | C15: 108,058 | D15: =IF(C15,C15/C21,"") -> 8.38% | E15: =IF(C15,C15/AVERAGE(C9:C20),"") -> 100.5% | F15: 7.0% | G15: =IF(F15,F15/AVERAGE(F9:F20),"") -> 84.0%
B16: =INDEX(H113:S114,1,O114) -> Aug | C16: 109,463 | D16: =IF(C16,C16/C21,"") -> 8.49% | E16: =IF(C16,C16/AVERAGE(C9:C20),"") -> 101.9% | F16: 9.5% | G16: =IF(F16,F16/AVERAGE(F9:F20),"") -> 114.0%
B17: =INDEX(H113:S114,1,P114) -> Sep | C17: 110,886 | D17: =IF(C17,C17/C21,"") -> 8.60% | E17: =IF(C17,C17/AVERAGE(C9:C20),"") -> 103.2% | F17: 9.0% | G17: =IF(F17,F17/AVERAGE(F9:F20),"") -> 108.0%
B18: =INDEX(H113:S114,1,Q114) -> Oct | C18: 112,327 | D18: =IF(C18,C18/C21,"") -> 8.71% | E18: =IF(C18,C18/AVERAGE(C9:C20),"") -> 104.5% | F18: 9.0% | G18: =IF(F18,F18/AVERAGE(F9:F20),"") -> 108.0%
B19: =INDEX(H113:S114,1,R114) -> Nov | C19: 113,787 | D19: =IF(C19,C19/C21,"") -> 8.82% | E19: =IF(C19,C19/AVERAGE(C9:C20),"") -> 105.9% | F19: 7.0% | G19: =IF(F19,F19/AVERAGE(F9:F20),"") -> 84.0%
B20: =INDEX(H113:S114,1,S114) -> Dec | C20: 115,267 | D20: =IF(C20,C20/C21,"") -> 8.94% | E20: =IF(C20,C20/AVERAGE(C9:C20),"") -> 107.3% | F20: 9.0% | G20: =IF(F20,F20/AVERAGE(F9:F20),"") -> 108.0%
B21: Total | C21: =IF(SUM(C9:C20),SUM(C9:C20),"") -> $1,289,629 | D21: =IF(ISNUMBER(C21),C21/C21,"") -> 100.00% | F21: =IF(SUM(F9:F20),SUM(F9:F20),"") -> 100.0%
H113: Jan | I113: Feb | J113: Mar | K113: Apr | L113: May | M113: Jun | N113: Jul | O113: Aug | P113: Sep | Q113: Oct | R113: Nov | S113: Dec
H114: =IF(ISTEXT(B9),MATCH(PROPER(LEFT(B9,3)),H113:S113,0),1) -> 1 | I114: =IF(H114=12,1,H114+1) -> 2 | J114: 3 | K114: 4 | L114: 5 | M114: 6 | N114: 7 | O114: 8 | P114: 9 | Q114: 10 | R114: 11 | S114: 12
